Cogmind - Beta 11 X7 @@@ ROGUE MODE // 2021.09.03 @ 04:39:03 Player: spruce Result: Destroyed by D-53 Grenadier with Mini Grenade Launcher Performance ------------- Evolutions (0) 0 Regions Visited (4) 800 Robots Destroyed (22) 110 Value Destroyed (571) 571 Prototype IDs (0) 0 Alien Tech Used (0) 0 Bonus (114) 114 TOTAL SCORE: 1595 Bonus ------- Follower Combat Kills 130 Friendly Fire -16 Cogmind --------- Core Integrity 0/250 Matter 297/300 Energy 100/100 System Corruption 0% Temperature Cool (0) Movement Rolling (135) Ox3 Location -9/Mines Parts ------- > --- POWER (1) -------- (None) > --- PROPULSION (2) --- Wheel Compact Wheel > --- UTILITY (2) ------ Huge Storage Unit > --- WEAPON (2) ------- Heavy Assault Rifle > --- INVENTORY (25) --- Ion Engine Nuclear Core Nuclear Core Light Nuclear Core Reinforced Deuterium Engine Light Treads Light Treads Light Treads Aluminum Leg Wheel Improved Heat Sink Improved Heat Sink Large Storage Unit Humpback Large Battery (200) Experimental Sensor Array Signal Interpreter Hacking Suite Medium Laser Particle Gun Assault Rifle Heavy Assault Rifle Datajack Peak State ------------ > --- POWER ------------ Light Ion Engine > --- PROPULSION ------- Compact Wheel Compact Wheel > --- UTILITY ---------- Huge Storage Unit Structural Scanner > --- WEAPON ----------- Heavy Assault Rifle Heavy Assault Rifle > --- INVENTORY -------- Ion Engine Ion Engine Nuclear Core Nuclear Core Light Nuclear Core Reinforced Deuterium Engine Light Treads Light Treads Light Treads Aluminum Leg Aluminum Leg Wheel Wheel Improved Heat Sink Large Storage Unit Visual Processing Unit Experimental Sensor Array Signal Interpreter Hacking Suite Medium Laser Particle Gun Assault Rifle Heavy Assault Rifle Heavy Assault Rifle Datajack [Rating: 14] Favorites ----------- Power Light Ion Engine Engine Light Ion Engine Propulsion Compact Wheel Treads Light Treads Wheel Compact Wheel Utility Structural Scanner Device Structural Scanner Storage Huge Storage Unit Weapon Heavy Assault Rifle Energy Gun Medium Laser Ballistic Gun Heavy Assault Rifle Special Melee Weapon Datajack Build | -11 -10 -10 -10 -9 ------- Run | Scr Mat Min Exi Min Slots Evolved . | . . . . . Power . | . . . . . Propulsion . | . . . . . Utility . | . . . . . Weapon . | . . . . . Parts Attached 19 | 6 7 . 3 3 Power 2 | 1 . . 1 . Engine 2 | 1 . . 1 . Core . | . . . . . Reactor . | . . . . . Propulsion 7 | 2 1 . 2 2 Treads 1 | . . . . 1 Leg . | . . . . . Wheel 6 | 2 1 . 2 1 Hover . | . . . . . Flight . | . . . . . Utility 3 | 1 2 . . . Device 1 | . 1 . . . Storage 2 | 1 1 . . . Processor . | . . . . . Hackware . | . . . . . Protection . | . . . . . Artifact . | . . . . . Weapon 7 | 2 4 . . 1 Energy Gun 2 | 2 . . . . Energy Cannon . | . . . . . Ballistic Gun 4 | . 3 . . 1 Ballistic Cannon . | . . . . . Launcher . | . . . . . Special Weapon . | . . . . . Impact Weapon . | . . . . . Slashing Weapon . | . . . . . Piercing Weapon . | . . . . . Special Melee Weapon 1 | . 1 . . . Unidentified Prototypes . | . . . . . Parts Lost 6 | . 1 . . 5 Power 1 | . . . . 1 Propulsion 2 | . 1 . . 1 Utility 1 | . . . . 1 Weapon 2 | . . . . 2 Highest Loss Streak 4 | . 1 . . 4 Average Slot Usage (%) 99 | . 98 100 100 98 Engine 14 | . 14 14 14 14 Wheel 27 | . 27 28 28 27 Device 13 | . 13 14 14 13 Storage 14 | . 14 14 14 14 Ballistic Gun 27 | . 24 28 28 27 Naked Turns . | . . . . . Heaviest Build 92 | 11 90 90 92 92 Greatest Support 32 | 32 32 32 32 26 Greatest Overweight (x) 5 | 1 5 2 2 3 Average Overweight (x) 1 | . 1 2 2 3 Largest Inventory Capacity 25 | 8 25 25 25 25 Average Capacity 23 | 7 20 25 25 25 Most Carried 25 | 4 17 25 25 25 Average Carried 19 | 2 10 20 24 24 Final Capacity 25 | 8 25 25 25 25 Final Carried 25 | 4 17 25 25 24 Class Distribution -------------------- 100% | Mutant Dominant Class ---------------- Mutant | -10/Materials Mutant | -10/Mines Mutant | -10/Exiles Mutant | -9/Mines Resources | -11 -10 -10 -10 -9 ----------- Run | Scr Mat Min Exi Min Matter Collected 656 | 252 253 72 . 79 Remotely . | . . . . . Salvage Created 749 | . 525 170 . 54 Parts 48 | . 36 8 . 4 Haulers Intercepted . | . . . . . Recyclers Shooed 1 | . 1 . . . Parts Field Recycled . | . . . . . Retrieved Matter . | . . . . . Parts Self-Destructed . | . . . . . Prevented . | . . . . . Kills | -11 -10 -10 -10 -9 ------- Run | Scr Mat Min Exi Min Combat Hostiles Destroyed 14 | . 10 2 . 2 Guns 14 | . 10 2 . 2 Classes Destroyed 8 | . 4 3 . 1 Worker 3 | . 2 1 . . Tunneler 1 | . . 1 . . Recycler 1 | . . 1 . . Operator 2 | . 2 . . . Watcher 1 | . 1 . . . Swarmer 1 | . . 1 . . Grunt 12 | . 10 1 . 1 Demolisher 1 | . . . . 1 Best Kill Streak 5 | . 5 3 . 1 Combat Bots Only 3 | . 3 1 . 1 Max Kills in Single Turn 1 | . 1 1 . 1 Gunslinging . | . . . . . Exploded . | . . . . . Melee . | . . . . . Uniques/NPCs Destroyed . | . . . . . Combat | -11 -10 -10 -10 -9 -------- Run | Scr Mat Min Exi Min Damage Taken 778 | . 234 117 . 427 Core 270 | . 57 44 . 169 Absorbed by Shields . | . . . . . Core Remaining (%) 100 | 100 . . . . Volleys Fired 49 | . 30 12 . 7 Largest 2 | . 2 2 . 2 Hottest 46 | . 46 46 . 46 Shots Fired 94 | . 60 24 . 10 Gun 94 | . 60 24 . 10 Cannon . | . . . . . Launcher . | . . . . . Special . | . . . . . Kinetic 94 | . 60 24 . 10 Thermal . | . . . . . Explosive . | . . . . . Electromagnetic . | . . . . . Robot Hit Streak 7 | . 5 6 . 7 Robot Miss Streak 2 | . 2 2 . 1 Penetration Max . | . . . . . Secondary Targets 4 | . 2 1 . 1 Max Gunslinging Chain 1 | . 1 1 . 1 Shots Hit Robots 57 | . 35 13 . 9 Core Hits 27 | . 19 6 . 2 Critical Kills 1 | . . . . 1 Critical Parts Destroyed . | . . . . . Critical Strikes 1 | . . . . 1 Destroy 1 | . . . . 1 Melee Attacks 3 | . 3 . . . Impact . | . . . . . Slashing . | . . . . . Piercing . | . . . . . Sneak Attacks 3 | . 3 . . . Combat Hostiles . | . . . . . Follow-up Attacks . | . . . . . Damage Inflicted 880 | . 531 215 . 134 Guns 880 | . 531 215 . 134 Cannons . | . . . . . Explosions . | . . . . . Melee . | . . . . . Ramming . | . . . . . Kinetic 880 | . 531 215 . 134 Thermal . | . . . . . Explosive . | . . . . . Electromagnetic . | . . . . . Impact . | . . . . . Slashing . | . . . . . Piercing . | . . . . . Highest Corruption . | . . . . . Average Corruption . | . . . . . Corruption Purged . | . . . . . Overload Shots . | . . . . . Overflow Damage . | . . . . . Projectiles . | . . . . . Explosions . | . . . . . Melee . | . . . . . Knockbacks . | . . . . . Impact . | . . . . . Kinetic . | . . . . . Secondary . | . . . . . Self-Inflicted Damage . | . . . . . Shots . | . . . . . Rammed . | . . . . . Targets Rammed . | . . . . . Kicked . | . . . . . Crushed . | . . . . . Highest Temperature 10 | . 10 4 . 8 Average Temperature 2 | . 2 3 . 3 Received Heat Transfer 222 | . 135 51 . 36 Siege Activations . | . . . . . Robots Corrupted . | . . . . . Combat Hostiles . | . . . . . Parts Fried . | . . . . . Impact Corruptions . | . . . . . Robots Melted . | . . . . . Combat Hostiles . | . . . . . Parts Melted . | . . . . . Heat Transferred . | . . . . . Parts Sabotaged . | . . . . . Parts Stolen . | . . . . . Parts Stripped . | . . . . . Power Chain Reactions . | . . . . . Missiles Intercepted . | . . . . . Alert | -11 -10 -10 -10 -9 ------- Run | Scr Mat Min Exi Min Peak Influence 139 | . 120 139 . 78 Initial 46 | . . 46 . . Average 55 | . 55 55 . 73 Maximum Alert Level . | . . . . . Low Security (%) 100 | 100 100 100 . 100 Level 1 . | . . . . . Level 2 . | . . . . . Level 3 . | . . . . . Level 4 . | . . . . . Level 5 . | . . . . . High Security . | . . . . . Max Security . | . . . . . Squads Dispatched 4 | . 4 . . . Investigation 1 | . 1 . . . Extermination . | . . . . . Reinforcement 3 | . 3 . . . Assault . | . . . . . Garrison . | . . . . . Intercept . | . . . . . Construction Impeded . | . . . . . Haulers Reinforced . | . . . . . Active Scanning Responses . | . . . . . Cargo Convoy Interrupts . | . . . . . Stealth | -11 -10 -10 -10 -9 --------- Run | Scr Mat Min Exi Min Distress Signals 3 | . 3 . . . Communications Jammed . | . . . . . Distress Signals . | . . . . . Times Spotted 39 | . 16 7 . 16 Peak Tracking Total 14 | . 4 3 . 14 Tactical Retreats 1 | . . . . 1 Traps | -11 -10 -10 -10 -9 ------- Run | Scr Mat Min Exi Min Traps Triggered 1 | . 1 . . . Indirectly . | . . . . . Trap Hack Attempts . | . . . . . Triggered . | . . . . . Disarmed . | . . . . . Reprogrammed . | . . . . . Reused . | . . . . . Traps Extracted . | . . . . . Installed . | . . . . . Triggered . | . . . . . Machines | -11 -10 -10 -10 -9 ---------- Run | Scr Mat Min Exi Min Machines Disabled 2 | . 1 1 . . Max in Single Turn 1 | . 1 1 . . Machines Sabotaged . | . . . . . Garrisons Compromised . | . . . . . Overloaded Fab Kills . | . . . . . Fab Network Shutdowns . | . . . . . Hacking | -11 -10 -10 -10 -9 --------- Run | Scr Mat Min Exi Min Machines Accessed 4 | . 2 1 1 . Terminals 3 | . 2 1 . . Fabricators . | . . . . . Repair Stations . | . . . . . Recycling Units . | . . . . . Scanalyzers . | . . . . . Garrison Access . | . . . . . Total Hacks 27 | . 3 1 23 . Successful 26 | . 2 1 23 . Failed 1 | . 1 . . . Catastrophic . | . . . . . Database Lockouts . | . . . . . Manual 2 | . 2 . . . Terminals 4 | . 3 1 . . Fabricators . | . . . . . Repair Stations . | . . . . . Recycling Units . | . . . . . Scanalyzers . | . . . . . Garrison Access . | . . . . . Terminal Hacks 26 | . 2 1 23 . Record 23 | . . . 23 . Branch Access Points 1 | . 1 . . . Unreport Threat 1 | . 1 . . . Dispatch Records 1 | . . 1 . . Fabricator Hacks . | . . . . . Repair Station Hacks . | . . . . . Recycling Unit Hacks . | . . . . . Scanalyzer . | . . . . . Garrison Access Hacks . | . . . . . Unauthorized Hacks . | . . . . . Terminals . | . . . . . Fabricators . | . . . . . Repair Stations . | . . . . . Recycling Units . | . . . . . Scanalyzers . | . . . . . Garrison Access . | . . . . . Data Cores Recovered 1 | . 1 . . . Used 1 | . 1 . . . Hacking Detections 1 | . 1 . . . Full Trace Events 1 | . 1 . . . Feedback Events . | . . . . . Feedback Blocked . | . . . . . Robot Schematics Acquired . | . . . . . Robots Built . | . . . . . Matter . | . . . . . Time . | . . . . . Total Robot Build Rating . | . . . . . Part Schematics Acquired . | . . . . . Parts Built . | . . . . . Matter . | . . . . . Time . | . . . . . Total Part Build Rating . | . . . . . Parts Repaired . | . . . . . Time . | . . . . . Parts Recycled . | . . . . . Recycled Matter . | . . . . . Retrieved Matter . | . . . . . Retrieved Components . | . . . . . Parts Scanalyzed . | . . . . . Part Schematics Acquired . | . . . . . Parts Damaged . | . . . . . Bothacking | -11 -10 -10 -10 -9 ------------ Run | Scr Mat Min Exi Min Used RIF Installer . | . . . . . Robots Hacked 2 | . 2 . . . Non-combat 2 | . 2 . . . Combat . | . . . . . Robot Hacks Applied 2 | . 2 . . . parse_system 1 | . 1 . . . no_distress 1 | . 1 . . . Relay Couplers Released . | . . . . . Robots Rewired . | . . . . . Allies Hacked . | . . . . . Hacks Repelled . | . . . . . Allies | -11 -10 -10 -10 -9 -------- Run | Scr Mat Min Exi Min Total Allies 3 | . . 3 . . Largest Group 3 | . . 3 2 2 Highest-Rated Group 40 | . . 40 32 32 Highest-Rated Ally 16 | . . 16 16 16 Total Orders . | . . . . . Ally Attacks 41 | . . 16 . 25 Total Damage 388 | . . 154 . 234 Kills 9 | . . 6 . 3 Allies Corrupted . | . . . . . Allies Melted . | . . . . . Intel | -11 -10 -10 -10 -9 ------- Run | Scr Mat Min Exi Min Robot Analysis Total . | . . . . . Derelict Logs Recovered 2 | . . 2 . . Drone Launches . | . . . . . Drone Recoveries . | . . . . . Exploration | -11 -10 -10 -10 -9 ------------- Run | Scr Mat Min Exi Min Turns Passed 2265 | 58 545 985 463 214 Spaces Moved 1572 | 50 337 712 342 131 Core 15 | 15 . . . . Treads . | . . . . . Legs . | . . . . . Wheels 1557 | 35 337 712 342 131 Hover . | . . . . . Flight . | . . . . . Fastest Speed 50 | 50 100 130 130 135 Average Speed 127 | 90 120 130 130 135 Slowest Speed 175 | 100 175 130 130 135 Overloaded Moves . | . . . . . Propulsion Burnouts . | . . . . . Robots Hopped . | . . . . . Cave-ins Triggered . | . . . . . Exploration Rate (%) 49 | 4 46 85 79 31 Regions Visited 4 Branch Regions 3 Pre-discovered Areas 1 | . . . 1 . Known Exits Taken 1 | . 1 . . . Unknown Exits Taken 3 | 1 . 1 1 . Scrap Searched 3 | . . 3 . . Spaces Dug . | . . . . . Terrain Destroyed . | . . . . . Melee . | . . . . . Projectile . | . . . . . AOE . | . . . . . Terrain Rammed . | . . . . . Walls Destroyed . | . . . . . Machines Disabled . | . . . . . Actions | -11 -10 -10 -10 -9 --------- Run | Scr Mat Min Exi Min Total 1745 | 59 416 750 362 158 Wait 55 | . 21 13 5 16 Move 1568 | 49 336 711 341 131 Hop . | . . . . . Pick Up 36 | 4 14 11 6 1 Fast Attach 9 | 6 3 . . . Attach 3 | . 1 . . 2 Detach 2 | . 2 . . . Swap 7 | . 3 . 3 1 Drop 13 | . 3 3 7 . Fire 49 | . 30 12 . 7 Melee 3 | . 3 . . . Ram . | . . . . . Kick . | . . . . . Crush . | . . . . . Escape Stasis . | . . . . . Rewire . | . . . . . Trap . | . . . . . Miscellaneous . | . . . . . Route ------- -11/Scrapyard -10/Materials (discovered 3 exits: [*Mat] / *Min x2) -10/Mines (discovered 3 exits: [*Mat x2] / *Exi) -10/Exiles -9/Mines (discovered 1 exit: [*Mat]) History --------- Turn | Location | Event 3 | -11/Scrapyard | Discovered new exit (range 16) 59 | -11/Scrapyard | Entered Materials 91 | -10/Materials | Discovered new exit (range 6) 185 | -10/Materials | Discovered new exit (range 9) 271 | -10/Materials | Discovered new exit (range 7) 310 | -10/Materials | Build established: Mutant 467 | -10/Materials | Identified exit to Mines 604 | -10/Materials | Entered Mines 607 | -10/Mines | Met a Derelict bent on vengeance 638 | -10/Mines | Deemed a non-threat by the Exiles lab entrance 638 | -10/Mines | Discovered new exit (range 6) 746 | -10/Mines | Discovered new exit (range 14) 992 | -10/Mines | Discovered new exit (range 10) 1144 | -10/Mines | Learned Materials trap positions 1166 | -10/Mines | Assisted by bots powering up and referring to "LRC-V3" 1356 | -10/Mines | Found a damaged Exp. Sensor Array with a note attached 1360 | -10/Mines | Found Prototype Device 1383 | -10/Mines | Learned location of 1 exit from Materials 1589 | -10/Mines | Entered Exiles 1589 | -10/Exiles | Accompanied by 2 allies 1641 | -10/Exiles | Met 8R-AWN 1662 | -10/Exiles | Met EX-HEX 1715 | -10/Exiles | Met EX-DEC 1720 | -10/Exiles | Learned location of Zion (-7) 1775 | -10/Exiles | Visited The Gauntlet 2029 | -10/Exiles | Discovered new exit (range 14) 2052 | -10/Exiles | Entered Mines 2052 | -9/Mines | Accompanied by 2 allies 2088 | -9/Mines | Discovered new exit (range 4) 2230 | -9/Mines | Assembled infested the area 2235 | -9/Mines | Assisted by a Guerilla fighting off Assembled 2257 | -9/Mines | Core integrity fell below 50% 2259 | -9/Mines | Core integrity fell below 20% 2266 | -9/Mines | Destroyed by D-53 Grenadier with Mini Grenade Launcher Last Messages --------------- 02242_ as-76003 knocked back. 02242_ as-11712 destroyed. 02246_ HV Slug penetrates as-27518. 02246_ as-27518 suffers critical hit (Destroy). 02246_ as-27518 destroyed. 02246_ as-76003 suffers critical hit (Destroy). 02246_ as-76003 destroyed. 02256_ C-30 ARC bursts open, deploying its payload. 02256_ D-53 Grenadier unfolds itself. 02256_ Hvy. Assault Rifle destroyed. 02256_ Structural Scanner destroyed. 02256_ Hvy. Assault Rifle destroyed. 02256_ U-05 Engineer destroyed. 02259_ Acquired 10 matter. 02259_ The unstable cave ceiling collapses. 02259_ D-53 Grenadier destroyed. 02260_ Acquired 3 matter. 02260_ The unstable cave ceiling collapses. 02262_ Acquired 3 matter. 02264_ Ion Engine destroyed. Map ----- +----------------------------------------------------+ | | | | | | | | | | | ?????????????????????????????????????????????????? | | ????????????????????????????????????????????????## | | ???????????????????????????????????????????????### | | ??????????????????????????????????????????????#### | | ??????????????????????????????????????????????### | | ?????????????????????????????????????????????### | | ????????????????????????????????????????????#### | | ???????????????????????????????????????????#### | | ????????????????????????????????????########## | | ???????????????????????????????????########## | | ??????????????????????????????????#### | | ??????????????????????????????????### | | ??????????????????????????????????## | | ???#########################?????### | | #########%##############????#### """" | | =% % %%%% ###???### """" | | * ################## ##??## """" | | ???? ################# ##### # | | ????????????????????# #### ## | | ?????????????????#### ### ### | | ?????????????????#### @ ### ## #### | | ??????????? d r ############ | | ?????????????####### ### ## ############ | | ?????????????????### # ######## ### | | ???????????????????# ###?###### ### """ | | ???????????????????####### #?######## ### """ | | ????????????????????????## ########## ### """ | | ????????????????????????## #### =!# ### < | | ????????????????????????## %# ### | | ????????????????????????####### # ####### #### | | ?????????????????????????###### % #### | | ?????????????????????????????## ##?? | | ?????????????????????????????## ############?? | | ?????????????????????????????###################?? | | ?????????????????????????????#########???????????? | | ?????????????????????????????????????????????????? | | ?????????????????????????????????????????????????? | | ?????????????????????????????????????????????????? | | ?????????????????????????????????????????????????? | | ?????????????????????????????????????????????????? | | ?????????????????????????????????????????????????? | | ?????????????????????????????????????????????????? | | ?????????????????????????????????????????????????? | | ?????????????????????????????????????????????????? | | ?????????????????????????????????????????????????? | +----------------------------------------------------+ Best States ------------- Heat Dissipation 25 Energy Generation 10 Energy Capacity 250 Matter Stores 300 Matter Capacity 300 Sight Range 16 Terrain Scan Density 10 Evasion (%) 50 Item Schematics ----------------- None Robot Schematics ------------------ None Fabricated ------------ Nothing Alien Tech Used ----------------- None Achievements -------------- None Challenges ------------ None Game ------ Seed HoverKineticElectrolaser Manual? 0 Play Time 00:17:06 Cumulative 208.3 hours Start 2021.09.03 @ 04:14:16 End 2021.09.03 @ 04:39:03 Sessions 1 Manual Loads 0 Difficulty Rogue Special Mode None Game No. 260 Rogue 260 Adventurer 0 Explorer 0 Win Type - Total 11 Types 3/3/0/1/1/3/0/0/0 Lore% 91 Gallery% 89 Achievement% 73 Wizard Run 0 Options --------- ASCII 0 Keyboard 0 Movement Numpad Keybinds 0 Fullscreen 2 Font 24/Smallcaps Map View 76x50 Tactical HUD 1 Map Filters NONE Filters NONE Steam 1 RUN: 6fadbde2-dfe7-4764-94c9-5175816d6cc4